bitfinex/quotes_BTCUSD_20260110
["timestamp","ask_amount","ask_price","bid_price","bid_amount"]
[1768005785198,0.05733293,90603.0,90599.0,0.001133]
[1768005785549,0.04623354,90602.0,90599.0,0.001133]
[1768005786047,0.05727082,90602.0,90599.0,0.001133]
[1768005786191,0.04623354,90602.0,90599.0,0.001133]
[1768005786966,0.05727082,90602.0,90599.0,0.001133]
[1768005787579,0.05727082,90602.0,90595.0,0.05961245]
[1768005787580,0.01109939,90603.0,90589.0,0.0222293]
[1768005787581,0.03,90592.0,90589.0,0.0222293]
[1768005787753,0.07623354,90592.0,90589.0,0.0222293]
[1768005787972,0.03,90592.0,90589.0,0.0001493]
[1768005788548,0.03,90591.0,90589.0,0.0001493]
[1768005789799,0.03,90594.0,90589.0,0.0001493]
[1768005790631,0.03,90595.0,90589.0,0.0001493]
[1768005790831,0.04103813,90595.0,90589.0,0.0001493]
[1768005791054,0.03,90595.0,90589.0,0.0001493]
[1768005791496,0.04103813,90595.0,90589.0,0.0001493]
[1768005791740,0.03,90593.0,90589.0,0.0001493]
[1768005792693,0.03,90592.0,90589.0,0.0001493]
[1768005793638,0.03,90595.0,90589.0,0.0001493]
[1768005794452,0.04103813,90595.0,90589.0,0.0001493]
[1768005795048,0.03,90595.0,90589.0,0.0001493]
[1768005795972,0.04103813,90595.0,90589.0,0.0001493]
[1768005796173,0.03,90595.0,90589.0,0.0001493]
[1768005797250,0.04103813,90595.0,90589.0,0.0001493]
[1768005797965,0.03,90593.0,90589.0,0.0001493]
[1768005799109,0.03,90594.0,90589.0,0.0001493]
[1768005799558,0.03,90592.0,90589.0,0.0001493]
[1768005799734,0.01103825,90594.0,90589.0,0.0001493]
[1768005800822,0.03,90594.0,90589.0,0.0001493]
[1768005803256,0.04103825,90594.0,90589.0,0.0001493]
[1768005803969,0.03,90593.0,90589.0,0.0001493]
[1768005805147,0.03,90592.0,90589.0,0.0001493]
[1768005806174,0.03,90593.0,90589.0,0.0001493]
[1768005808594,0.03,90592.0,90589.0,0.0001493]
[1768005809630,0.03,90591.0,90589.0,0.0001493]
[1768005810395,0.01103825,90594.0,90589.0,0.0001493]
[1768005811160,0.03,90591.0,90589.0,0.0001493]
[1768005812124,0.03,90592.0,90589.0,0.0001493]
[1768005812453,0.03,90590.0,90589.0,0.0001493]
[1768005816701,0.03,90591.0,90589.0,0.0001493]
[1768005816942,0.0110385,90592.0,90589.0,0.0001493]
[1768005818224,0.03,90592.0,90589.0,0.0001493]
[1768005818369,0.0410385,90592.0,90589.0,0.0001493]
[1768005818772,0.03,90592.0,90589.0,0.0001493]
[1768005822366,0.03,90591.0,90589.0,0.0001493]
[1768005822503,0.01103838,90593.0,90589.0,0.0001493]
[1768005823055,0.01103825,90594.0,90589.0,0.0001493]
[1768005823264,0.0110385,90592.0,90589.0,0.0001493]
[1768005823447,0.03,90591.0,90589.0,0.0001493]
[1768005823655,0.01103825,90594.0,90589.0,0.0001493]
[1768005823853,0.0110385,90592.0,90589.0,0.0001493]
[1768005823996,0.01103838,90593.0,90589.0,0.0001493]
[1768005824400,0.03,90592.0,90589.0,0.0001493]
[1768005825353,0.0410385,90592.0,90589.0,0.0001493]
[1768005825787,0.03,90591.0,90589.0,0.0001493]
[1768005826058,0.0110385,90592.0,90589.0,0.0001493]
[1768005826420,0.01103838,90593.0,90589.0,0.0001493]
[1768005826617,0.06045506,90592.0,90589.0,0.0001493]
[1768005826816,0.03,90590.0,90589.0,0.0001493]
[1768005833067,0.08386947,90591.0,90590.0,0.000999]
[1768005833675,0.08386947,90591.0,90589.0,0.0001493]
[1768005836648,0.08287047,90591.0,90589.0,0.0001493]
[1768005842104,0.08287047,90591.0,90589.0,8.119e-05]
[1768005842504,0.08287047,90591.0,90584.0,0.05957166]
[1768005842505,0.01103874,90590.0,90584.0,0.05957166]
[1768005842810,0.03,90590.0,90584.0,0.05957166]
[1768005843013,0.03,90588.0,90584.0,0.10723718]
[1768005844061,0.03,90589.0,90584.0,0.05957166]
[1768005844982,0.03,90588.0,90584.0,0.10723718]
[1768005845947,0.03,90587.0,90584.0,0.10723718]
[1768005846985,0.03,90586.0,90584.0,0.10723718]
[1768005847748,0.08287047,90591.0,90586.0,0.04774652]
[1768005848136,0.03,90590.0,90586.0,0.04766552]
[1768005850094,0.08287047,90591.0,90590.0,8.1e-05]
[1768005850664,0.08287047,90591.0,90584.0,0.05957166]
[1768005851167,0.03,90588.0,90585.0,0.04766552]
[1768005851382,0.09390909,90591.0,90588.0,8.1e-05]
[1768005851585,0.08287047,90591.0,90588.0,8.1e-05]
[1768005851786,0.08287047,90591.0,90584.0,0.05957166]
[1768005852347,0.03,90590.0,90584.0,0.05957166]
[1768005853543,0.03,90590.0,90585.0,0.10723718]
[1768005853854,0.08287047,90591.0,90585.0,0.10723718]
[1768005854046,0.08272116,90591.0,90585.0,0.10723718]
[1768005864434,0.08272116,90591.0,90586.0,0.05957166]
[1768005872026,0.04942875,90591.0,90585.0,0.10723718]
[1768005872200,0.04870177,90590.0,90585.0,0.05957166]
[1768005877516,0.04942875,90591.0,90585.0,0.05957166]
[1768005882056,0.04942875,90591.0,90586.0,0.05957166]
[1768005888308,0.03,90595.0,90588.0,0.05957166]
[1768005888686,0.07954697,90595.0,90590.0,0.01103874]
[1768005888895,0.07954697,90595.0,90593.0,0.05519183]
[1768005889148,0.03,90595.0,90594.0,0.05519129]
[1768005889496,0.03,90595.0,90593.0,0.06623017]
[1768005889700,0.03,90595.0,90593.0,0.01103838]
[1768005889920,6.223e-05,90603.0,90593.0,0.01103838]
[1768005889921,6.223e-05,90603.0,90600.0,0.01103752]
[1768005896025,6.223e-05,90603.0,90601.0,0.04684366]
[1768005896229,6.223e-05,90603.0,90602.0,0.10203007]
[1768005896797,6.223e-05,90603.0,90602.0,0.04684366]
[1768005898369,6.223e-05,90603.0,90601.0,0.05518695]
[1768005898482,6.223e-05,90603.0,90601.0,0.10203061]
[1768005898896,6.223e-05,90603.0,90601.0,0.04684366]
[1768005901381,0.000999,90601.0,90598.0,0.08657998]
[1768005901759,0.000999,90601.0,90598.0,0.09761775]
[1768005902081,6.223e-05,90603.0,90598.0,0.09761775]
[1768005902481,6.223e-05,90603.0,90598.0,0.08657998]
[1768005902663,6.223e-05,90603.0,90599.0,0.04684366]
[1768005906630,6.223e-05,90603.0,90599.0,0.0578813]
[1768005906824,0.000999,90599.0,90596.0,0.06181632]
[1768005907066,6.223e-05,90603.0,90596.0,0.06181632]
[1768005909849,6.223e-05,90603.0,90596.0,0.07285433]
[1768005910254,0.000999,90596.0,90592.0,0.02208]
[1768005910663,0.03,90601.0,90592.0,0.02208]
[1768005911311,0.04103752,90600.0,90592.0,0.02208]
[1768005911517,0.03,90596.0,90585.0,0.05957166]
[1768005911735,0.01103789,90597.0,90582.0,0.04842108]
[1768005911736,0.00010775,90592.0,90584.0,0.02208]
[1768005911939,0.03010775,90592.0,90584.0,0.02208]
[1768005912176,0.03,90592.0,90584.0,0.02208]
[1768005913008,0.01103813,90595.0,90584.0,0.02208]
[1768005913009,0.03,90591.0,90584.0,0.02208]
[1768005914083,0.03,90590.0,90584.0,0.03311947]
[1768005914306,0.03,90590.0,90585.0,0.01103935]
[1768005915181,0.03,90589.0,90585.0,0.01103935]
[1768005915401,0.0690901,90603.0,90589.0,0.000999]
[1768005915626,0.02214223,90603.0,90589.0,0.04942008]
[1768005915825,0.0110374,90601.0,90589.0,0.04842108]
[1768005916249,0.03,90600.0,90589.0,0.04842108]
[1768005916444,0.03,90600.0,90589.0,0.05945994]
[1768005916606,0.03,90600.0,90589.0,0.04842108]
[1768005917000,0.03,90600.0,90589.0,0.05945994]
[1768005917225,0.04103728,90602.0,90590.0,0.04842108]
[1768005917431,0.03,90602.0,90590.0,0.05945982]
[1768005917631,0.04103728,90602.0,90590.0,0.04842108]
[1768005917794,0.03,90602.0,90590.0,0.05945982]
[1768005917996,0.03,90602.0,90590.0,0.04842108]
[1768005918348,0.04103728,90602.0,90590.0,0.04842108]
[1768005918647,0.03,90602.0,90590.0,0.05945982]
[1768005918848,0.03,90602.0,90590.0,0.04842108]
[1768005919196,0.04103764,90599.0,90590.0,0.04842108]
[1768005919409,0.03,90597.0,90590.0,0.04842108]
[1768005920412,0.03,90595.0,90590.0,0.04842108]
[1768005921439,0.03,90597.0,90590.0,0.04842108]
[1768005922462,0.03,90600.0,90590.0,0.04842108]
[1768005923666,0.03,90599.0,90590.0,0.04842108]
[1768005924858,0.03,90598.0,90590.0,0.04842108]
[1768005925725,0.04103777,90598.0,90590.0,0.04842108]
[1768005925931,0.03,90596.0,90590.0,0.04842108]
[1768005926681,0.04103801,90596.0,90590.0,0.04842108]
[1768005926874,0.03,90596.0,90590.0,0.04842108]
[1768005927332,0.03,90595.0,90590.0,0.04842108]
[1768005928341,0.04103789,90597.0,90590.0,0.04842108]
[1768005928674,0.03,90597.0,90590.0,0.04842108]
[1768005928875,0.04103789,90597.0,90590.0,0.04842108]
[1768005929387,0.03,90597.0,90590.0,0.04842108]
[1768005929588,0.04103789,90597.0,90590.0,0.04842108]
[1768005929789,0.03,90597.0,90590.0,0.04842108]
[1768005930451,0.04103789,90597.0,90590.0,0.04842108]
[1768005931362,0.03,90597.0,90590.0,0.04842108]
[1768005932189,0.03,90593.0,90587.0,0.05957166]
[1768005932536,0.03,90593.0,90586.0,0.05957166]
[1768005933170,0.03,90592.0,90587.0,0.10915595]
[1768005934475,0.03,90595.0,90587.0,0.10915595]
[1768005936166,0.04103813,90595.0,90587.0,0.10915595]
[1768005936546,0.03,90595.0,90587.0,0.10915595]
[1768005937153,0.03,90595.0,90588.0,0.05957166]
[1768005937563,0.03,90594.0,90588.0,0.05957166]
[1768005938687,0.03,90596.0,90588.0,0.05957166]
[1768005939325,0.04103801,90596.0,90588.0,0.05957166]
[1768005939541,0.03,90596.0,90588.0,0.05957166]
[1768005940277,0.03,90596.0,90589.0,0.05957166]
[1768005940480,0.04103801,90596.0,90589.0,0.05957166]
[1768005940690,0.03,90594.0,90588.0,0.05957166]
[1768005941351,0.03,90594.0,90589.0,0.05957166]
[1768005941773,0.03,90595.0,90589.0,0.05957166]
[1768005942410,0.01103825,90594.0,90589.0,0.05957166]
[1768005942623,0.03,90593.0,90589.0,0.05957166]
[1768005942847,0.03,90593.0,90588.0,0.05957166]
[1768005943686,0.03,90592.0,90588.0,0.05957166]
[1768005944310,0.03,90592.0,90588.0,0.10915595]
[1768005944720,0.03,90591.0,90589.0,0.04958429]
[1768005945568,0.06622611,90599.0,90591.0,0.000999]
[1768005945812,0.03,90594.0,90591.0,0.000999]
[1768005946040,0.03,90594.0,90589.0,0.10915595]
[1768005946800,0.03,90593.0,90589.0,0.10915595]
[1768005947011,0.01103764,90599.0,90593.0,0.000954]
[1768005947419,0.01103789,90597.0,90593.0,0.000954]
[1768005947784,0.01103789,90597.0,90590.0,0.04958429]
[1768005947785,0.03,90596.0,90590.0,0.04958429]
[1768005949254,0.03,90595.0,90590.0,0.04958429]
[1768005950277,0.04103789,90597.0,90590.0,0.04958429]
[1768005950512,0.03,90597.0,90590.0,0.04958429]
[1768005950713,0.04103789,90597.0,90590.0,0.04958429]
[1768005951495,0.04103813,90595.0,90589.0,0.05957166]
[1768005951693,0.03,90595.0,90589.0,0.05957166]
[1768005952133,0.03,90593.0,90589.0,0.05957166]
[1768005953106,0.04103838,90593.0,90589.0,0.05957166]
[1768005953318,0.03,90591.0,90589.0,0.05952666]
[1768005954319,0.03,90590.0,90589.0,0.05952666]
[1768005954696,0.03,90590.0,90589.0,0.05349543]
[1768005955277,0.03,90592.0,90589.0,0.05349543]
[1768005956267,0.04103838,90593.0,90589.0,0.05349543]
[1768005956606,0.03,90593.0,90589.0,0.05349543]
[1768005956753,0.03,90591.0,90589.0,0.05349543]
[1768005958030,0.03,90588.0,90582.0,0.02208]
[1768005959142,0.03,90589.0,90582.0,0.02208]
[1768005960139,0.03,90588.0,90582.0,0.02208]
[1768005961155,0.03,90587.0,90582.0,0.02208]
[1768005961365,0.01103862,90591.0,90582.0,0.02208]
[1768005961601,0.01103874,90590.0,90582.0,0.02208]
[1768005961734,0.01103886,90589.0,90582.0,0.02208]
[1768005961956,0.01103874,90590.0,90580.0,0.0001493]
[1768005962273,0.03,90589.0,90580.0,0.0001493]
[1768005963019,0.04103886,90589.0,90580.0,0.0001493]
[1768005963150,0.03,90589.0,90580.0,0.0001493]
[1768005963349,0.01103874,90590.0,90580.0,0.0001493]
[1768005963350,0.03,90588.0,90580.0,0.0001493]
[1768005964458,0.03,90589.0,90580.0,0.0001493]
[1768005966271,0.04103886,90589.0,90580.0,0.0001493]
[1768005966400,0.03,90587.0,90580.0,0.0001493]
[1768005966937,0.03,90587.0,90580.0,0.04751048]
[1768005967347,0.03,90587.0,90580.0,0.0001493]
[1768005967507,0.03,90586.0,90580.0,0.0001493]
[1768005968501,0.03,90585.0,90581.0,0.04736118]
[1768005968889,0.03,90585.0,90580.0,0.0001493]
[1768005969285,0.01103838,90593.0,90585.0,0.000999]
[1768005969472,0.03,90592.0,90585.0,0.000909]
[1768005969670,0.03,90592.0,90580.0,0.01118926]
[1768005970085,0.0410385,90592.0,90580.0,0.0001493]
[1768005970257,0.03,90592.0,90580.0,0.0001493]
[1768005970458,0.03,90592.0,90580.0,0.01118926]
[1768005971074,0.03,90592.0,90580.0,0.05855044]
[1768005971683,0.03,90592.0,90580.0,0.04751048]
[1768005971888,0.03,90592.0,90580.0,0.05855044]
[1768005972858,0.03,90592.0,90580.0,0.04751048]
[1768005973053,0.03,90592.0,90580.0,0.05855044]
[1768005974030,0.03,90592.0,90580.0,0.04751048]
[1768005974577,0.03,90584.0,90580.0,0.04751048]
[1768005974846,0.07625803,90581.0,90580.0,0.0001493]
[1768005975062,0.01103923,90586.0,90580.0,0.0001493]
[1768005975270,0.02097649,90585.0,90581.0,0.05966938]
[1768005975479,0.02097649,90585.0,90581.0,0.05962439]
[1768005975673,0.02097649,90585.0,90580.0,0.0001493]
[1768005975923,0.01103886,90589.0,90546.0,0.1395827]
[1768005975924,0.02097649,90572.0,90568.0,0.02097649]
[1768005976148,0.05097649,90571.0,90569.0,0.02208]
[1768005978090,0.05097649,90570.0,90569.0,0.02208]
[1768005978298,0.05097649,90564.0,90562.0,0.0222693]
[1768005978680,0.01104093,90572.0,90562.0,0.0222693]
[1768005979051,0.01104081,90573.0,90562.0,0.0222693]
[1768005979276,0.01104093,90572.0,90562.0,0.0222693]
[1768005979524,0.03,90571.0,90562.0,0.0222693]
[1768005982011,0.03,90571.0,90562.0,0.0001493]
[1768005982212,0.03,90570.0,90562.0,0.0001493]
[1768005983205,0.03,90569.0,90562.0,0.0001493]
[1768005984214,0.03,90571.0,90562.0,0.0001493]
[1768005984865,0.03,90569.0,90562.0,0.0001493]
[1768005985268,0.03,90569.0,90562.0,0.0001043]
[1768005985809,0.04104093,90572.0,90562.0,0.0001043]
[1768005985933,0.03,90572.0,90562.0,0.0001043]
[1768005987183,0.03,90571.0,90562.0,0.0001043]
[1768005988166,0.03,90570.0,90562.0,0.0001043]
[1768005989136,0.0410413,90569.0,90562.0,0.0001043]
[1768005989410,0.0410413,90569.0,90556.0,0.06820278]
[1768005989411,0.03,90565.0,90556.0,0.06820278]
[1768005989570,0.04104179,90565.0,90556.0,0.06820278]
[1768005989737,0.03,90563.0,90556.0,0.06820278]
[1768005990147,0.03,90563.0,90557.0,0.04736118]
[1768005991880,0.03,90562.0,90557.0,0.04736118]
[1768005992404,0.03,90559.0,90557.0,0.04736118]
[1768005993390,0.03,90560.0,90557.0,0.04736118]
[1768005994522,0.03,90560.0,90557.0,0.04731618]
[1768005994720,0.03,90559.0,90557.0,0.04731618]
[1768005994919,0.03,90559.0,90557.0,0.04727119]
[1768005995148,0.03,90559.0,90557.0,0.04637619]
[1768005995746,0.03,90558.0,90557.0,0.04637619]
[1768006000326,0.03,90560.0,90557.0,0.04637619]
[1768006000671,0.0410424,90560.0,90557.0,0.04637619]
[1768006000887,0.03,90560.0,90557.0,0.04637619]
[1768006001082,0.03,90559.0,90557.0,0.04637619]
[1768006004117,0.03,90556.0,90553.0,0.04563667]
[1768006004975,0.01104228,90561.0,90556.0,0.04648637]
[1768006005118,0.03,90560.0,90556.0,0.04548737]
[1768006006064,0.03,90558.0,90556.0,0.04548737]
[1768006006926,0.01104228,90561.0,90558.0,0.000999]
[1768006007130,0.03,90560.0,90558.0,0.000999]
[1768006007331,0.03,90560.0,90556.0,0.04548737]
[1768006008511,0.03,90559.0,90556.0,0.04548737]
[1768006009096,0.01104203,90563.0,90559.0,0.000999]
[1768006009436,0.01154424,90566.0,90556.0,0.04548737]
[1768006009579,0.04104179,90565.0,90553.0,0.0001493]
[1768006009935,0.03,90565.0,90553.0,0.0001493]
[1768006010092,0.03,90563.0,90553.0,0.0001493]
[1768006010313,0.02096248,90564.0,90563.0,0.000999]
[1768006010630,0.02096248,90564.0,90553.0,0.0001493]
[1768006011015,0.02096248,90564.0,90553.0,0.01119255]
[1768006011220,0.02096248,90565.0,90564.0,0.000999]
[1768006011444,0.03,90565.0,90564.0,0.000999]
[1768006011681,0.03,90565.0,90555.0,0.04913116]
[1768006012472,0.03,90564.0,90555.0,0.04913116]
[1768006013475,0.03,90563.0,90555.0,0.04913116]
[1768006014515,0.03,90562.0,90555.0,0.04913116]
[1768006015414,0.03,90561.0,90555.0,0.04913116]
[1768006015572,0.04104228,90561.0,90555.0,0.04913116]
[1768006015774,0.03,90561.0,90555.0,0.04913116]
[1768006015982,0.04104228,90561.0,90555.0,0.04913116]
[1768006016177,0.03,90561.0,90555.0,0.04913116]
[1768006016406,0.03,90563.0,90555.0,0.04913116]
[1768006017365,0.04104191,90564.0,90555.0,0.04913116]
[1768006017565,0.03,90561.0,90555.0,0.04913116]
[1768006018611,0.03,90560.0,90555.0,0.04913116]
[1768006019596,0.03,90559.0,90555.0,0.04913116]
[1768006020408,0.01154424,90566.0,90559.0,0.000999]
[1768006020582,0.04104191,90564.0,90559.0,0.000999]
[1768006020803,0.04104191,90564.0,90555.0,0.04913116]
[1768006021208,0.03,90562.0,90555.0,0.04913116]
[1768006022451,0.03,90561.0,90555.0,0.04913116]
[1768006023793,0.03,90564.0,90555.0,0.04913116]
[1768006027171,0.03,90563.0,90555.0,0.04913116]
[1768006028379,0.03,90562.0,90555.0,0.04913116]
[1768006029235,0.03,90561.0,90555.0,0.04913116]
[1768006030539,0.03,90565.0,90555.0,0.04913116]
[1768006031291,0.00050743,90567.0,90565.0,0.000999]
[1768006031736,0.03050743,90567.0,90565.0,0.04652396]
[1768006031938,0.03050743,90567.0,90565.0,0.04552496]
[1768006032554,0.00050743,90567.0,90565.0,0.04552496]
[1768006032780,0.00050743,90567.0,90557.0,0.04552496]
[1768006033366,0.03,90566.0,90557.0,0.04552496]
[1768006034487,0.03,90564.0,90557.0,0.04552496]
[1768006035825,0.00050743,90567.0,90565.0,0.04552496]
[1768006037590,0.01103972,90582.0,90567.0,0.04603196]
[1768006037748,0.02096248,90572.0,90569.0,0.0110413]
[1768006037958,0.03150959,90587.0,90572.0,0.01104093]
[1768006038173,0.02212,90583.0,90571.0,0.01104106]
[1768006038375,0.03150959,90587.0,90573.0,0.01104081]
[1768006038376,0.08184834,90587.0,90573.0,0.01104081]
[1768006038553,0.02047048,90587.0,90574.0,0.01104069]
[1768006038752,0.02212,90583.0,90574.0,0.01104069]
[1768006038958,0.03,90582.0,90573.0,0.01104081]
[1768006039893,0.03,90582.0,90574.0,0.01104069]
[1768006040094,0.03007001,90582.0,90574.0,0.01104069]
[1768006040295,0.03007001,90582.0,90573.0,0.01104081]
[1768006041034,0.03007001,90582.0,90574.0,0.01104069]
[1768006041243,0.03007001,90582.0,90573.0,0.01104081]
[1768006041404,0.02061978,90584.0,90582.0,0.000507]
[1768006041627,0.02047048,90583.0,90577.0,0.01104033]
[1768006041801,0.02047048,90583.0,90575.0,0.01104057]
[1768006042445,0.0001493,90584.0,90577.0,0.01104033]
[1768006042644,0.0001493,90584.0,90575.0,0.01104057]
[1768006042645,0.0001493,90584.0,90583.0,0.000507]
[1768006042857,0.0001493,90584.0,90575.0,0.01104057]
[1768006043341,0.0001493,90584.0,90576.0,0.01104045]
[1768006043783,0.0001493,90584.0,90575.0,0.05656553]
[1768006044282,0.0001493,90584.0,90576.0,0.01104045]
[1768006044459,0.0001493,90584.0,90575.0,0.05656553]
[1768006045645,0.0001493,90584.0,90576.0,0.01104045]
[1768006046087,0.0001493,90584.0,90575.0,0.05656553]
[1768006046493,0.0001493,90584.0,90575.0,0.04552496]
[1768006048880,0.0001493,90584.0,90575.0,0.05656553]
[1768006049063,0.0001493,90584.0,90575.0,0.04552496]
[1768006049263,0.0001493,90584.0,90575.0,0.05656553]
[1768006050631,0.0001493,90584.0,90577.0,0.04552496]
[1768006057537,0.0001493,90584.0,90577.0,0.05656529]
[1768006057740,0.0001493,90584.0,90577.0,0.04552496]
[1768006060794,0.03,90583.0,90577.0,0.04552496]
[1768006061708,0.03,90582.0,90577.0,0.04552496]
[1768006062927,0.03,90581.0,90577.0,0.04552496]
[1768006064143,0.03,90580.0,90577.0,0.04552496]
[1768006065256,0.0001493,90584.0,90577.0,0.05656529]
[1768006065577,0.0295857,90589.0,90577.0,0.04552496]
[1768006066001,0.01854684,90589.0,90577.0,0.04552496]
[1768006066214,0.02212,90590.0,90580.0,0.05973686]
[1768006066424,0.03,90589.0,90580.0,0.05973686]
[1768006066832,0.03,90589.0,90580.0,0.0486969]
[1768006068219,0.03,90587.0,90580.0,0.0486969]
[1768006069376,0.03,90588.0,90580.0,0.0486969]
[1768006070296,0.04103886,90589.0,90580.0,0.0486969]
[1768006070527,0.03,90589.0,90580.0,0.0486969]
[1768006071312,0.03315862,90591.0,90580.0,0.0486969]
[1768006071313,0.03,90588.0,90580.0,0.0486969]
[1768006072280,0.03,90587.0,90580.0,0.0486969]
[1768006073399,0.03,90586.0,90580.0,0.0486969]
[1768006074525,0.03,90585.0,90580.0,0.0486969]
[1768006074858,0.03,90585.0,90580.0,0.0482049]
[1768006075754,0.03,90589.0,90580.0,0.0482049]
[1768006076551,0.04103886,90589.0,90580.0,0.0482049]
[1768006077594,0.03,90588.0,90580.0,0.0482049]
[1768006077874,0.03,90588.0,90580.0,0.05924486]
[1768006078012,0.03,90588.0,90581.0,0.01103984]
[1768006078214,0.03,90588.0,90582.0,0.04921976]
[1768006078415,0.03,90587.0,90582.0,0.04921976]
[1768006079639,0.03,90586.0,90582.0,0.04921976]
[1768006079870,0.02212,90591.0,90586.0,0.05021876]
[1768006080029,0.02212,90591.0,90586.0,0.04921976]
[1768006080838,0.03,90590.0,90586.0,0.04921976]
[1768006096489,0.0001493,90593.0,90591.0,0.04611969]
[1768006096689,0.0001493,90593.0,90592.0,0.1013122]
[1768006096899,0.03,90594.0,90593.0,0.10131159]
[1768006097056,0.751223,90595.0,90594.0,0.10131098]
[1768006097254,0.751223,90595.0,90594.0,0.04611969]
[1768006097468,0.750224,90595.0,90594.0,0.04611969]
[1768006098161,0.750224,90595.0,90594.0,0.10131098]
[1768006099802,0.750224,90595.0,90594.0,0.04611969]
[1768006104844,0.750224,90595.0,90588.0,0.05957419]
[1768006105046,0.000999,90594.0,90589.0,0.04611969]
[1768006105251,0.03,90591.0,90587.0,0.05957419]
[1768006105424,0.03,90591.0,90584.0,0.08169419]
[1768006105625,0.03,90591.0,90585.0,0.04611969]
[1768006105866,0.000999,90585.0,90583.0,0.05957419]
[1768006106009,0.03,90586.0,90580.0,0.05957419]
[1768006106649,0.03,90581.0,90580.0,0.10569388]
[1768006106854,0.03,90581.0,90580.0,0.05957419]
[1768006107665,0.0110385,90592.0,90581.0,0.000999]
[1768006108190,0.1606007,90594.0,90580.0,0.05957419]
[1768006108191,0.11644764,90594.0,90580.0,0.07061415]
[1768006108330,0.10540939,90594.0,90581.0,0.01103984]
[1768006108513,0.03,90592.0,90584.0,0.04611969]
[1768006109780,0.03,90591.0,90584.0,0.04611969]
[1768006110752,0.03,90590.0,90584.0,0.04611969]
[1768006110947,0.00014933,90589.0,90584.0,0.04611969]
[1768006111780,0.03014933,90589.0,90584.0,0.04611969]
[1768006112944,0.00014933,90589.0,90584.0,0.04611969]
[1768006117347,0.00014933,90589.0,90585.0,0.0459959]
[1768006121229,0.03014933,90589.0,90585.0,0.0459959]
[1768006122252,0.03,90588.0,90585.0,0.0459959]
[1768006123282,0.00014933,90589.0,90585.0,0.0459959]
[1768006125516,0.03,90591.0,90585.0,0.0459959]
[1768006126077,0.08386947,90594.0,90586.0,0.0459959]
[1768006126286,0.03,90593.0,90592.0,0.0459959]
[1768006126891,0.03,90593.0,90587.0,0.0459959]
[1768006127113,0.03,90593.0,90587.0,0.10557009]
[1768006127529,0.00014933,90592.0,90588.0,0.0459959]
[1768006132246,0.00014933,90592.0,90588.0,0.10557009]
[1768006132727,0.03,90590.0,90588.0,0.10557009]
[1768006133136,0.03,90590.0,90588.0,0.0459959]
[1768006133462,0.03,90590.0,90588.0,0.10557009]
[1768006134022,0.03,90593.0,90588.0,0.10557009]
[1768006134566,0.03,90593.0,90588.0,0.0459959]
[1768006134787,0.03,90579.0,90573.0,0.07942522]
[1768006134994,0.02153992,90582.0,90569.0,0.0110413]
[1768006135200,0.01103984,90581.0,90571.0,0.00021931]
[1768006135418,0.01103972,90582.0,90571.0,0.04859198]
[1768006135831,0.04103972,90582.0,90571.0,0.04859198]
[1768006136067,0.00014933,90578.0,90571.0,0.04859198]
[1768006136997,0.03014933,90578.0,90571.0,0.04859198]
[1768006137991,0.03,90577.0,90571.0,0.04859198]
[1768006139128,0.03014933,90578.0,90571.0,0.04859198]
[1768006140349,0.03,90577.0,90571.0,0.04859198]
[1768006141306,0.01103996,90580.0,90571.0,0.04859198]
[1768006141307,0.03,90576.0,90571.0,0.04859198]
[1768006142327,0.03315947,90584.0,90571.0,0.04859198]
[1768006142543,0.06623807,90583.0,90580.0,0.00410097]
[1768006142755,0.01103959,90583.0,90571.0,0.04859198]
[1768006143031,0.01103959,90583.0,90575.0,0.04583922]
[1768006143032,0.01103972,90582.0,90575.0,0.04583922]
[1768006143244,0.01103959,90583.0,90575.0,0.04583922]
[1768006143474,0.03,90581.0,90575.0,0.04583922]
[1768006143848,0.04103984,90581.0,90575.0,0.04583922]
[1768006144252,0.03,90581.0,90575.0,0.04583922]
[1768006144725,0.03,90580.0,90575.0,0.04583922]
[1768006145663,0.03,90582.0,90575.0,0.04583922]
[1768006146501,0.04103972,90582.0,90575.0,0.04583922]
[1768006146684,0.03,90582.0,90575.0,0.04583922]
[1768006146917,0.03,90581.0,90575.0,0.04583922]
[1768006147967,0.03,90580.0,90575.0,0.04583922]
[1768006148167,0.03,90580.0,90571.0,0.00021931]
[1768006148474,0.03,90580.0,90571.0,0.04605853]
[1768006149072,0.03,90579.0,90571.0,0.04605853]
[1768006150228,0.03,90580.0,90571.0,0.04605853]
[1768006151021,0.03,90578.0,90571.0,0.04605853]
[1768006152140,0.03,90580.0,90571.0,0.04605853]
[1768006152703,0.04103996,90580.0,90571.0,0.04605853]
[1768006152933,0.03,90580.0,90571.0,0.04605853]
[1768006153429,0.04103996,90580.0,90571.0,0.04605853]
[1768006153652,0.03,90580.0,90571.0,0.04605853]
[1768006153830,0.03,90579.0,90571.0,0.04605853]
[1768006154994,0.03,90578.0,90571.0,0.04605853]
[1768006155940,0.03,90577.0,90571.0,0.04605853]
[1768006157033,0.03,90576.0,90571.0,0.04605853]
[1768006157197,0.01103959,90583.0,90576.0,0.000999]
[1768006157393,0.01103972,90582.0,90571.0,0.04605853]
[1768006157804,0.02212,90584.0,90573.0,0.04583922]
[1768006157990,0.03,90583.0,90578.0,0.04583922]
[1768006158628,0.05046249,90573.0,90571.0,0.00021931]
[1768006158830,0.06624243,90577.0,90571.0,0.00021931]
[1768006158831,0.05046249,90572.0,90571.0,0.00021931]
[1768006159449,0.06624463,90574.0,90558.0,0.00050746]
[1768006159450,0.03,90564.0,90558.0,0.00050746]
[1768006159651,0.05053256,90564.0,90558.0,0.00050746]
[1768006160008,0.03007007,90564.0,90558.0,0.00050746]
[1768006160421,0.03,90563.0,90558.0,0.00050746]
[1768006161560,7.007e-05,90564.0,90558.0,0.00050746]
[1768006161948,0.03150379,90569.0,90558.0,0.00050746]
[1768006161949,0.00932024,90573.0,90558.0,0.04634668]
[1768006162206,0.08386947,90566.0,90564.0,7e-05]
[1768006162408,0.08294047,90566.0,90564.0,0.04590922]
[1768006162548,0.08294047,90566.0,90564.0,0.04583922]
[1768006164442,0.05842167,90566.0,90564.0,0.04583922]
[1768006165715,0.0509382,90566.0,90564.0,0.04583922]
[1768006165921,0.02212,90573.0,90564.0,0.04583922]